bitfinex-derivatives/quotes_ETHF0:USTF0_20250205
["timestamp","ask_amount","ask_price","bid_price","bid_amount"]
[1738749434236,0.836628,2759.8,2759.2,0.8466]
[1738749434438,41.636628,2759.8,2759.3,0.8508]
[1738749436740,3.93219,2759.7,2758.8,5.96361424]
[1738749436946,3.2078,2759.4,2758.8,6.531711]
[1738749437147,1.6328,2759.3,2758.8,6.531711]
[1738749437346,0.8147,2759.2,2758.8,6.531711]
[1738749437543,0.8147,2759.2,2758.8,3.323911]
[1738749437942,0.8147,2759.2,2758.8,4.133911]
[1738749440148,40.8,2759.1,2758.8,4.133911]
[1738749440351,44.0078,2759.1,2758.7,3.2078]
[1738749440642,3.2078,2758.8,2757.7,3.2078]
[1738749440846,3.2078,2758.4,2757.8,0.7941]
[1738749441052,3.2078,2758.4,2757.7,3.2078]
[1738749441345,3.26604894,2758.3,2757.7,3.2078]
[1738749441552,0.79293794,2758.3,2757.7,3.2078]
[1738749441850,0.8415,2758.2,2757.7,3.2078]
[1738749443949,0.8415,2758.2,2757.8,0.8468]
[1738749444945,0.8415,2758.2,2757.7,3.2078]
[1738749446952,40.8,2758.1,2757.7,3.2078]
[1738749447153,40.8,2758.1,2757.4,3.2078]
[1738749447947,0.8415,2758.2,2757.4,3.2078]
[1738749448148,0.8415,2758.2,2757.7,3.2078]
[1738749448344,0.00543794,2758.3,2757.8,0.8014]
[1738749448548,0.00543794,2758.3,2757.9,0.7876]
[1738749449452,0.00543794,2758.3,2758.2,2.473111]
[1738749449653,3.2078,2759.0,2758.2,2.473111]
[1738749449854,3.2078,2759.0,2758.4,3.2078]
[1738749450149,3.2078,2759.0,2758.5,2.473111]
[1738749450952,3.21323794,2759.0,2758.5,2.47854894]
[1738749452056,3.21323794,2759.0,2758.5,0.00543794]
[1738749455358,40.8,2758.9,2758.5,0.00543794]
[1738749456757,40.8,2758.9,2758.5,0.81363794]
[1738749457658,40.8,2758.9,2758.5,3.28674894]
[1738749459357,40.8,2758.9,2758.5,3.57534006]
[1738749460059,0.00543794,2759.0,2758.7,3.2078]
[1738749483077,41.58328323,2759.1,2758.7,3.2078]
[1738749486979,41.58328323,2759.1,2758.5,3.28674894]
[1738749487178,41.58328323,2759.1,2758.7,3.2078]
[1738749488279,41.58328323,2759.1,2758.5,3.28674894]
[1738749488474,41.58328323,2759.1,2758.7,3.2078]
[1738749489174,0.00543794,2759.2,2758.7,3.2078]
[1738749489380,0.81,2759.4,2759.1,5.680911]
[1738749489569,1.7132,2760.0,2759.2,1.6666]
[1738749489774,2.5409,2760.0,2759.5,3.2078]
[1738749490475,2.5409,2760.0,2759.6,0.8536]
[1738749490673,2.54633794,2760.0,2759.6,0.8536]
[1738749492371,0.00543794,2760.0,2759.7,2.473111]
[1738749492571,0.00543794,2760.0,2759.8,0.8108]
[1738749493573,0.00543794,2760.0,2759.5,3.2078]
[1738749494878,0.00543794,2760.0,2759.6,0.8314]
[1738749495079,0.00543794,2760.0,2759.7,2.473111]
[1738749495280,0.00543794,2760.0,2759.8,0.8317]
[1738749498192,0.00543794,2760.0,2759.9,3.2078]
[1738749500901,0.00543794,2760.0,2759.7,2.473111]
[1738749502602,0.00543794,2760.0,2759.5,3.2078]
[1738749502896,3.21323794,2760.0,2759.2,4.0755]
[1738749503090,1.6552,2759.9,2759.2,4.0755]
[1738749503292,2.4695,2759.9,2759.2,4.0755]
[1738749504798,2.4695,2759.9,2759.4,2.473111]
[1738749508096,2.4695,2759.9,2759.6,3.2078]
[1738749508303,0.8143,2759.9,2759.7,2.473111]
[1738749508505,0.8669,2760.4,2759.8,2.473111]
[1738749508700,0.8669,2760.4,2760.1,2.473111]
[1738749508897,2.473111,2761.4,2760.3,3.2078]
[1738749508898,40.8,2761.3,2760.3,3.2078]
[1738749509205,43.374,2761.3,2760.6,3.2078]
[1738749509399,43.374,2761.3,2760.8,2.473111]
[1738749509696,0.00543794,2761.2,2760.8,2.473111]
[1738749510698,0.00543794,2761.2,2760.7,0.00543794]
[1738749512202,0.00543794,2761.2,2760.8,2.473111]
[1738749514003,0.00543794,2761.2,2760.7,0.00543794]
[1738749523213,0.00543794,2761.2,2760.8,2.473111]
[1738749524115,0.00543794,2761.2,2760.7,0.00543794]
[1738749525910,0.00543794,2761.2,2760.7,0.82273794]
[1738749529216,0.00543794,2761.2,2760.7,0.00543794]
[1738749531519,3.2078,2760.9,2760.7,0.00543794]
[1738749531825,0.8581,2760.8,2760.7,0.00543794]
[1738749534921,8.331211,2760.8,2760.0,0.8045]
[1738749535123,1.6519,2760.7,2759.9,5.680911]
[1738749536115,1.6519,2760.7,2760.0,0.00543794]
[1738749537916,4.8597,2760.7,2760.1,3.2078]
[1738749549135,4.8597,2760.7,2760.2,0.7886]
[1738749549333,4.8597,2760.7,2760.2,1.6438]
[1738749550227,4.8597,2760.7,2760.2,0.7886]
[1738749550427,4.8597,2760.7,2760.1,3.2078]
[1738749550724,4.8597,2760.7,2760.0,0.00543794]
[1738749550725,3.2078,2760.4,2760.0,0.00543794]
[1738749550923,3.2078,2760.1,2760.0,0.00543794]
[1738749551129,44.0078,2760.1,2760.0,0.00543794]
[1738749551833,44.7988,2760.1,2760.0,0.00543794]
[1738749552740,0.791,2760.1,2760.0,0.00543794]
[1738749552926,0.796,2760.3,2760.0,0.00543794]
[1738749553235,3.2078,2760.5,2760.0,0.00543794]
[1738749557032,43.2354,2760.7,2760.0,0.00543794]
[1738749562440,2.4354,2760.7,2760.0,0.00543794]
[1738749566851,5.6432,2760.7,2760.0,3.21323794]
[1738749567252,2.4354,2760.7,2760.0,0.00543794]
[1738749567454,5.6432,2760.7,2760.0,3.21323794]
[1738749568648,40.8,2760.6,2760.0,3.21323794]
[1738749577458,5.6432,2760.7,2760.0,3.21323794]
[1738749577948,46.4432,2760.7,2760.0,3.21323794]
[1738749580052,46.4432,2760.7,2760.3,3.2078]
[1738749580560,2.4354,2760.7,2760.3,3.2078]
[1738749588864,3.2078,2760.6,2760.0,0.00543794]
[1738749589057,2.473111,2760.2,2759.6,3.2078]
[1738749589264,1.7088,2760.1,2759.6,3.2078]
[1738749590270,1.7088,2760.1,2759.6,3.21323794]
[1738749590863,5.680911,2759.9,2758.8,0.815]
[1738749591068,3.2078,2759.7,2759.0,3.2078]
[1738749591264,1.6722,2759.6,2759.0,3.2078]
[1738749591669,40.8,2759.5,2759.0,3.2078]
[1738749592071,40.80543794,2759.5,2759.0,3.21323794]
[1738749593266,0.00543794,2759.5,2759.0,3.21323794]
[1738749594065,0.79213794,2759.5,2759.0,3.21323794]
[1738749594367,0.79213794,2759.5,2759.0,5.68634894]
[1738749598274,0.79213794,2759.5,2759.0,2.47854894]
[1738749598574,0.79213794,2759.5,2759.1,3.2078]
[1738749600566,0.79213794,2759.5,2759.0,0.00543794]
[1738749600766,2.473111,2759.3,2758.8,3.2078]
[1738749601077,44.73227,2759.4,2758.1,2.473111]
[1738749601078,2.473111,2759.0,2758.1,3.2078]
[1738749601269,3.2078,2758.8,2758.1,3.2078]
[1738749601469,3.2078,2758.8,2758.1,5.680911]
[1738749601875,1.6898,2758.9,2758.1,6.405711]
[1738749602077,1.6898,2758.9,2758.4,3.2078]
[1738749602375,3.2078,2758.8,2758.1,3.2078]
[1738749602571,3.2078,2758.5,2757.6,3.2078]
[1738749602773,2.473111,2758.4,2757.6,3.2078]
[1738749602964,1.7017,2758.3,2757.6,3.2078]
[1738749603165,3.2078,2757.8,2757.2,3.2078]
[1738749603370,1.7017,2757.7,2756.9,11.73736291]
[1738749603975,0.8158,2757.6,2756.9,11.73736291]
[1738749604180,0.8158,2757.6,2757.1,2.473111]
[1738749604379,0.8609,2757.7,2757.4,2.473111]
[1738749604579,0.00543794,2757.8,2757.5,3.2078]
[1738749604775,0.8282,2758.3,2757.7,2.473111]
[1738749604981,0.8282,2758.3,2757.8,3.2078]
[1738749605277,0.8282,2758.3,2758.0,2.473111]
[1738749605478,3.2078,2758.7,2758.0,2.473111]
[1738749605679,2.515,2758.9,2758.1,4.0121]
[1738749605876,0.00543794,2758.6,2758.1,4.01753794]
[1738749606082,0.00543794,2758.6,2758.4,3.2078]
[1738749606276,0.00543794,2758.6,2758.2,0.8136]
[1738749607179,0.00543794,2758.6,2758.3,2.473111]
[1738749607475,0.00543794,2758.6,2758.4,3.2078]
[1738749609782,2.515,2758.9,2758.4,3.2078]
[1738749609978,3.2078,2759.8,2758.7,3.2078]
[1738749610180,3.2078,2759.8,2758.3,1.52485279]
[1738749610181,0.811,2759.5,2759.0,3.2078]
[1738749610476,44.8188,2759.5,2759.0,3.2078]
[1738749610984,44.82423794,2759.5,2759.0,3.21323794]
[1738749615084,0.00543794,2759.5,2759.3,3.2078]
[1738749615284,0.00543794,2759.5,2759.4,0.867]
[1738749616091,0.00543794,2759.5,2759.3,3.2078]
[1738749620486,0.00543794,2759.5,2759.0,3.21323794]
[1738749621093,40.8,2759.4,2759.0,3.21323794]
[1738749621392,40.8,2759.4,2759.3,3.2078]
[1738749621686,0.00543794,2759.5,2759.3,5.680911]
[1738749621887,0.00543794,2759.5,2759.4,0.8516]
[1738749622286,0.00543794,2759.5,2759.3,3.2078]
[1738749622485,0.00543794,2759.5,2759.3,5.680911]
[1738749622687,0.8288,2760.0,2759.3,10.680911]
[1738749622891,43.2588,2760.4,2759.9,3.2078]
[1738749623892,43.26423794,2760.4,2759.9,3.2078]
[1738749624195,3.2078,2760.2,2759.4,3.2078]
[1738749625188,3.2078,2760.2,2759.7,3.2078]
[1738749625590,3.2078,2760.2,2759.8,0.8159]
[1738749626491,3.2078,2760.2,2759.7,3.2078]
[1738749626686,3.2078,2760.2,2759.4,3.2078]
[1738749626886,6.405171,2760.2,2759.4,3.2078]
[1738749627195,5.680911,2760.2,2759.4,3.2078]
[1738749628196,3.2078,2760.2,2759.4,3.2078]
[1738749628393,3.2078,2759.9,2759.4,3.2078]
[1738749628588,2.4107,2759.8,2759.4,3.2078]
[1738749629296,0.7891,2759.8,2759.5,0.8555]
[1738749629696,0.7891,2759.8,2759.5,3.328611]
[1738749629994,1.6216,2760.1,2759.7,3.2078]
[1738749630189,0.8516,2760.0,2759.7,3.2078]
[1738749630891,0.72436,2759.8,2759.1,3.2078]
[1738749631091,3.2078,2759.2,2759.0,0.00543794]
[1738749631596,2.473111,2759.1,2759.0,0.00543794]
[1738749632297,43.273111,2759.1,2759.0,0.00543794]
[1738749634090,45.715711,2759.1,2759.0,0.00543794]
[1738749637300,4.915711,2759.1,2759.0,0.00543794]
[1738749637501,2.4426,2759.1,2759.0,0.00543794]
[1738749638401,4.915711,2759.1,2759.0,0.00543794]
[1738749641403,9.915711,2759.1,2758.2,0.8046]
[1738749641602,9.915711,2759.1,2757.6,3.2078]
[1738749641603,0.72476,2758.3,2757.6,3.2078]
[1738749641800,2.473111,2758.8,2757.5,0.8291]
[1738749641801,3.2078,2757.8,2757.5,0.8291]
[1738749642002,3.2078,2757.8,2757.2,1.6028]
[1738749642003,5.680911,2757.8,2757.2,0.7993]
[1738749642202,3.2078,2757.5,2757.2,0.8291]
[1738749642503,0.8232,2757.4,2756.8,3.2078]
[1738749642812,0.8232,2757.4,2757.1,0.00543794]
[1738749643107,3.2078,2757.2,2757.1,0.00543794]
[1738749644305,6.405951,2757.2,2755.8,2.473111]
[1738749644614,6.405951,2757.2,2756.1,0.8291]
[1738749644615,3.2078,2756.7,2756.1,0.8291]
[1738749645010,40.8,2756.6,2756.1,0.8291]
[1738749645604,40.8,2756.6,2756.1,0.83453794]
[1738749646215,3.2078,2756.7,2756.1,0.83453794]
[1738749646815,44.0078,2756.7,2756.1,0.83453794]
[1738749647207,5.394111,2757.2,2756.1,3.30764894]
[1738749647416,3.2078,2757.0,2756.4,2.473111]
[1738749648313,3.2078,2757.0,2756.3,3.2078]
[1738749649513,3.2078,2757.3,2756.7,3.2078]
[1738749649712,3.2078,2757.3,2756.8,0.8406]
[1738749650614,2.473111,2757.2,2756.8,0.8406]
[1738749653317,3.2078,2757.3,2756.8,0.8406]
[1738749661724,5.680911,2756.9,2756.1,0.00543794]
[1738749661933,3.2078,2756.5,2756.1,0.00543794]
[1738749663420,0.812,2756.8,2756.4,3.2078]
[1738749663626,3.2078,2757.1,2756.4,3.2078]
[1738749663627,3.2078,2757.1,2756.4,5.680911]
[1738749663927,3.2078,2757.1,2756.5,0.8321]
[1738749664120,3.2078,2757.1,2756.6,0.8296]
[1738749665725,3.2078,2757.1,2756.7,2.473111]
[1738749670527,1.6547,2757.4,2756.8,3.2078]
[1738749670729,0.7968,2757.4,2757.1,3.2078]
[1738749673222,0.8461,2757.5,2757.1,3.2078]
[1738749673427,1.6446,2758.0,2757.4,3.2078]
[1738749673625,2.4781,2758.0,2757.4,3.2078]
[1738749673823,3.93272,2757.7,2757.0,3.2078]
[1738749674026,3.2078,2757.7,2757.0,3.2078]
[1738749674627,0.00543794,2757.6,2757.0,3.2078]
[1738749676231,0.00543794,2757.6,2757.0,5.680911]
[1738749676824,0.00543794,2757.6,2757.4,3.2078]
[1738749677025,0.00543794,2757.6,2757.5,0.8527]
[1738749678629,2.4404,2758.4,2757.7,0.7249]
[1738749678630,0.7926,2758.4,2757.7,0.7249]
[1738749678938,4.0241,2759.2,2758.3,2.473111]
[1738749679133,42.3817,2759.6,2759.1,3.2078]
[1738749679437,1.5817,2759.6,2759.1,3.2078]
[1738749679842,1.58713794,2759.6,2759.1,0.00543794]
[1738749680538,3.2078,2759.4,2759.1,0.00543794]
[1738749681833,3.2078,2759.4,2758.4,0.7876]
[1738749681834,6.405381,2759.4,2758.4,0.7876]
[1738749682039,3.2078,2758.9,2758.2,5.680911]
[1738749682235,0.8095,2758.8,2758.2,5.680911]
[1738749682535,1.6707,2758.8,2758.2,5.680911]
[1738749682931,1.6707,2758.8,2758.2,5.68634894]
[1738749685034,0.8398,2758.7,2758.2,5.68634894]
[1738749685341,41.6398,2758.7,2758.2,5.68634894]
[1738749686137,0.8398,2758.7,2758.2,5.68634894]
[1738749686538,0.8398,2758.7,2758.2,6.41110894]
[1738749687437,0.8398,2758.7,2758.2,5.68634894]
[1738749687641,3.2078,2758.9,2758.5,2.473111]
[1738749687843,3.2078,2758.9,2758.5,3.197801]
[1738749688038,1.6305,2759.3,2758.6,1.6536]
[1738749688240,1.6305,2759.3,2758.7,0.87]
[1738749689035,1.6305,2759.3,2758.8,2.473111]
[1738749690143,2.473111,2760.0,2759.1,5.680911]
[1738749690442,1.6305,2759.9,2759.1,5.680911]
[1738749690646,2.4325,2759.9,2759.1,5.680911]
[1738749691039,2.4325,2759.9,2759.4,3.2078]
[1738749691240,2.4325,2759.9,2759.4,5.680911]
[1738749691544,0.8203,2759.9,2759.5,0.8071]
[1738749691748,3.2078,2760.4,2759.5,0.8071]
[1738749691948,0.8575,2760.2,2759.5,0.8071]
[1738749692643,1.6668,2760.1,2759.5,0.8071]
[1738749692846,1.67223794,2760.1,2759.6,0.00543794]
[1738749693248,0.00543794,2760.1,2759.7,3.2078]
[1738749693751,0.00543794,2760.1,2759.7,5.680911]
[1738749694643,0.00543794,2760.1,2759.8,0.72435]
[1738749694944,0.00543794,2760.1,2760.0,3.2078]
[1738749697244,0.00543794,2760.1,2760.0,5.680911]
[1738749697444,0.00543794,2760.1,2760.0,6.405221]
[1738749697647,0.00543794,2760.1,2760.0,5.680911]
[1738749698046,0.00543794,2760.1,2760.0,6.405221]
[1738749699046,0.00543794,2760.1,2760.0,11.405221]
[1738749699643,0.00543794,2760.1,2760.0,6.405221]
[1738749700147,0.00543794,2760.1,2760.0,5.680911]
[1738749702343,0.00543794,2760.1,2760.0,5.96459692]
[1738749703654,0.00543794,2760.1,2760.0,6.68890692]
[1738749703846,0.00543794,2760.1,2760.0,5.96459692]
[1738749704141,0.00543794,2760.1,2760.0,3.2078]
[1738749705647,0.00543794,2760.1,2760.0,6.405221]
[1738749706042,0.00543794,2760.1,2760.0,6.504711]
[1738749706650,0.00543794,2760.1,2760.0,7.229021]
[1738749706944,0.00543794,2760.1,2760.0,6.504711]
[1738749707452,4.9254,2761.1,2760.3,0.72422]
[1738749707748,1.7176,2761.1,2761.0,3.2078]
[1738749708342,0.8621,2761.1,2761.0,3.2078]
[1738749709147,0.8621,2761.1,2760.6,3.2078]
[1738749709453,0.8349,2761.0,2760.5,2.76129332]
[1738749709746,0.8349,2761.0,2760.6,3.2078]
[1738749716243,2.473111,2760.9,2760.6,3.2078]
[1738749716450,6.405001,2760.9,2759.9,3.2078]
[1738749716657,2.473111,2760.5,2759.6,0.00543794]
[1738749716956,43.2263,2760.4,2759.6,0.00543794]
[1738749717345,43.2263,2760.4,2759.6,0.2938177]
[1738749717554,43.2263,2760.4,2759.6,0.00543794]
[1738749718554,3.2078,2760.3,2759.6,0.00543794]
[1738749719852,3.2078,2760.3,2759.6,0.29349985]
[1738749720054,3.2078,2760.3,2759.6,0.00543794]
[1738749721153,3.2078,2760.3,2759.6,2.47854894]
[1738749721357,2.4263,2760.4,2760.2,3.2078]
[1738749721660,0.7893,2760.4,2760.2,3.2078]
[1738749721856,3.2078,2761.1,2760.2,5.680911]
[1738749722060,3.2078,2761.1,2760.2,6.405151]
[1738749722462,3.2078,2761.1,2760.0,1.6659]
[1738749722463,3.2078,2761.1,2760.8,2.473111]
[1738749723156,3.2078,2761.1,2760.6,0.8182]
[1738749723355,3.2078,2761.1,2760.5,3.2078]
[1738749723659,5.680911,2761.1,2760.5,3.2078]
[1738749724959,5.680911,2761.1,2759.8,0.72435]
[1738749724960,5.680911,2760.8,2759.6,2.47854894]
[1738749725155,2.5097,2761.2,2759.7,3.2078]
[1738749725156,2.473111,2760.2,2759.7,3.2078]
[1738749725355,5.6943,2760.1,2759.6,0.00543794]
[1738749725559,2.473111,2759.8,2759.6,0.00543794]
[1738749725963,8.167411,2760.1,2759.6,0.00543794]
[1738749727665,40.8,2760.0,2759.6,0.00543794]
[1738749728267,5.6943,2760.1,2759.6,0.00543794]
[1738749728457,2.4865,2760.1,2759.6,2.47854894]
[1738749728960,0.7875,2760.1,2759.6,2.47854894]
[1738749729156,0.7875,2760.1,2759.9,3.2078]
[1738749729358,0.7875,2760.1,2759.8,3.2078]
[1738749730070,0.7875,2760.1,2759.6,0.00543794]
[1738749734968,0.7875,2760.1,2759.7,3.2078]
[1738749735163,0.8187,2760.4,2760.0,3.2078]
[1738749735372,4.0186,2761.1,2760.3,3.2078]
[1738749735573,0.00543794,2761.3,2760.9,3.2078]
[1738749735761,0.00543794,2761.3,2761.1,2.473111]
[1738749736667,0.00543794,2761.3,2761.2,3.2078]
[1738749738264,1.6029,2762.3,2761.3,0.72396]
[1738749738471,1.6029,2762.3,2761.8,3.10086759]
[1738749739464,0.00543794,2762.3,2761.8,3.10630553]
[1738749739776,0.00543794,2762.3,2761.8,0.00543794]
[1738749740770,0.00543794,2762.3,2762.1,3.10086759]
[1738749741273,0.00543794,2762.3,2762.2,0.8552]
[1738749741669,0.00543794,2762.3,2762.0,3.2078]
[1738749744774,0.00543794,2762.3,2762.1,3.10086759]
[1738749745077,0.8221,2763.2,2762.4,3.10086759]
[1738749745372,0.8221,2763.2,2762.7,3.2078]
[1738749745769,0.8221,2763.2,2762.4,3.2078]
[1738749745970,3.2078,2763.0,2762.4,3.2078]
[1738749746167,3.2078,2763.0,2762.1,3.10086759]
[1738749747377,3.2078,2763.0,2762.0,3.49831637]
[1738749748781,3.2078,2762.7,2762.0,3.49831637]
[1738749749075,3.2078,2762.7,2762.0,3.2078]
[1738749749281,0.8237,2762.6,2762.0,3.2078]
[1738749749681,0.8661,2762.5,2762.0,3.2078]
[1738749751976,40.8,2762.4,2762.0,3.2078]
[1738749752566,0.8661,2762.5,2762.0,3.2078]
[1738749752771,0.8661,2762.5,2761.9,3.2078]
[1738749752973,41.6661,2762.5,2761.9,3.2078]
[1738749753182,0.8661,2762.5,2761.9,3.2078]
[1738749753370,3.2078,2762.3,2761.8,0.00543794]
[1738749753571,3.2078,2762.0,2761.8,0.00543794]
[1738749757385,1.6198,2761.9,2761.8,0.00543794]
[1738749758188,2.4892,2761.9,2761.8,0.00543794]
[1738749760377,3.2078,2762.0,2761.8,0.00543794]
[1738749760581,4.8805,2762.3,2761.8,0.00543794]
[1738749760782,3.2078,2762.3,2762.0,2.47407122]
[1738749761176,3.2078,2762.3,2762.1,0.8352]
[1738749762587,3.2078,2762.3,2761.8,0.81513794]
[1738749762789,3.2078,2762.3,2761.8,1.10013587]
[1738749767896,3.2078,2762.3,2761.8,0.81513794]
[1738749769498,3.2078,2762.3,2761.8,0.00543794]
[1738749769698,1.6093,2762.2,2761.8,0.00543794]
[1738749769892,3.2078,2762.0,2761.8,0.00543794]
[1738749770397,0.8361,2762.1,2761.8,0.00543794]
[1738749770592,40.8,2762.0,2761.8,0.00543794]
[1738749770994,0.8361,2762.1,2761.8,0.00543794]
[1738749771495,3.2078,2762.3,2762.0,2.47407122]
[1738749772095,3.2078,2762.7,2762.0,2.47407122]
[1738749772293,3.2078,2762.7,2761.9,2.5144]
[1738749772499,2.5184,2763.0,2762.3,5.68187122]
[1738749773191,1.6442,2763.0,2762.6,2.47407122]
[1738749773693,1.6442,2763.0,2762.7,3.2078]
[1738749773694,0.8361,2763.0,2762.7,3.2078]
[1738749773897,0.8361,2763.0,2762.7,4.0539]
[1738749774296,0.00359214,2763.1,2762.7,4.0539]
[1738749775406,0.00359214,2763.1,2762.7,0.8461]
[1738749777108,0.00359214,2763.1,2762.7,4.0539]
[1738749777398,0.00359214,2763.1,2762.7,4.8599]
[1738749777796,0.00359214,2763.1,2762.9,2.47407122]
[1738749778298,0.00359214,2763.1,2762.7,3.2078]
[1738749778502,0.00359214,2763.1,2762.6,2.47407122]
[1738749780505,0.00359214,2763.1,2762.4,3.2078]
[1738749781200,0.00359214,2763.1,2762.6,2.47407122]
[1738749782500,3.2078,2762.9,2762.2,0.8372]
[1738749782700,0.8709,2762.8,2762.2,0.8372]
[1738749782898,0.8392,2762.7,2762.2,0.8372]
[1738749783101,40.8,2762.6,2762.2,0.8372]
[1738749783607,0.8392,2762.7,2762.2,0.8372]
[1738749784008,41.6392,2762.7,2762.2,0.8372]
[1738749785899,0.8392,2762.7,2762.2,0.8372]
[1738749791705,0.8392,2762.7,2762.1,3.2078]
[1738749791912,3.2078,2762.5,2761.8,3.21323794]
[1738749794817,3.2078,2762.2,2761.8,0.00543794]
[1738749795117,0.858,2762.1,2761.8,0.00543794]
[1738749795311,0.8293,2762.0,2761.8,0.00543794]
[1738749795512,1.6774,2762.0,2761.8,0.00543794]
[1738749803010,0.8481,2762.0,2761.8,0.00543794]
[1738749803317,0.858,2762.1,2761.8,0.00543794]
[1738749803825,3.2078,2762.2,2761.9,2.47407122]
[1738749804216,3.2078,2762.2,2761.8,0.86683794]
[1738749804522,3.2078,2762.2,2761.8,0.00543794]
[1738749812422,3.64472,2762.3,2761.8,0.00543794]
[1738749812616,3.2078,2762.1,2761.8,0.00543794]
[1738749817232,2.47407122,2762.0,2761.0,0.8614]
[1738749817530,0.72395,2761.4,2760.6,4.0431]
[1738749817728,3.2078,2761.2,2760.6,4.0431]
[1738749817929,3.2078,2761.2,2760.4,2.47407122]
[1738749818429,0.00543794,2761.1,2760.5,0.00543794]
[1738749818929,3.2078,2760.6,2760.5,0.00543794]
[1738749819430,3.93195,2760.6,2760.5,0.00543794]
[1738749819634,3.2078,2760.6,2760.5,0.00543794]
[1738749820428,4.0649,2760.6,2760.5,0.00543794]
[1738749820630,3.2078,2760.9,2760.5,0.00543794]
[1738749821133,0.00543794,2761.1,2760.8,3.2078]
[1738749822833,0.00543794,2761.1,2761.0,2.47407122]
[1738749823037,3.2078,2762.2,2761.0,3.19810122]
[1738749823237,4.082,2762.2,2761.4,2.47407122]
[1738749824235,0.00359214,2762.1,2761.4,2.47407122]
[1738749826334,0.00359214,2762.1,2761.5,0.815]
[1738749830940,3.2078,2761.8,2761.1,0.8535]
[1738749831248,1.6516,2761.7,2761.1,0.8535]
[1738749831440,0.8769,2761.6,2761.1,0.8535]
[1738749831633,40.8,2761.5,2761.1,0.8535]
[1738749832241,0.8769,2761.6,2761.1,0.8535]
[1738749832739,41.6769,2761.6,2761.1,0.8535]
[1738749833840,3.2078,2761.8,2761.1,3.32757122]
[1738749835748,0.00359214,2762.1,2761.5,3.2078]
[1738749835937,0.87849214,2762.1,2761.6,0.8322]
[1738749836342,41.67849214,2762.1,2761.6,0.8322]
[1738749837247,41.67849214,2762.1,2761.7,0.8847]
[1738749839542,3.2078,2761.9,2761.2,3.2078]
[1738749839847,5.68187122,2762.0,2761.1,2.47407122]
[1738749840033,6.40567122,2762.0,2761.1,2.47407122]
[1738749840746,3.2078,2762.0,2761.1,2.47407122]
[1738749840945,3.2078,2762.0,2761.2,4.0474]
[1738749841144,3.2078,2762.0,2761.4,2.47407122]
[1738749841640,0.87849214,2762.1,2761.8,3.2078]
[1738749841841,0.00359214,2762.1,2761.8,3.2078]
[1738749842047,0.00359214,2762.1,2761.9,1.6746]
[1738749845050,0.00359214,2762.1,2762.0,2.47407122]
[1738749846638,0.00359214,2762.1,2761.9,1.6746]
[1738749846851,0.00359214,2762.1,2761.7,2.47407122]
[1738749847147,0.00359214,2762.1,2761.5,1.11569585]
[1738749847339,0.82029214,2762.1,2761.5,1.11569585]
[1738749847739,0.82029214,2762.1,2761.5,0.8334]
[1738749847948,40.8,2762.0,2761.4,7.42097122]
[1738749848148,4.0966,2761.9,2761.4,3.2078]
[1738749851352,3.2078,2761.2,2760.5,3.29970916]
[1738749854747,3.2078,2760.8,2760.5,0.00543794]
[1738749854952,2.5511,2760.7,2760.5,0.00543794]
[1738749855353,40.8,2760.6,2760.5,0.00543794]
[1738749855954,2.5511,2760.7,2760.5,0.00543794]
[1738749857761,0.8563,2760.7,2760.5,0.00543794]
[1738749857960,2.47407122,2761.4,2760.5,0.00543794]
[1738749857961,3.2078,2761.2,2760.5,0.00543794]
[1738749858258,3.2078,2761.2,2760.5,2.47950916]
[1738749858659,3.2078,2761.2,2760.5,5.68730916]
[1738749858860,3.2078,2761.2,2760.6,0.8757]
[1738749862269,3.2078,2761.2,2760.6,1.17063038]
[1738749862468,3.2078,2761.2,2760.8,2.47407122]
[1738749864273,3.2078,2761.2,2760.6,1.17063038]
[1738749866076,3.2078,2761.2,2760.8,2.47407122]
[1738749867981,42.5602,2761.6,2760.8,2.47407122]
[1738749867982,3.2078,2761.5,2761.1,2.47407122]
[1738749868174,0.8629,2761.8,2761.4,2.47407122]
[1738749868484,0.8681,2762.2,2761.7,5.68187122]
[1738749868685,0.8629,2762.2,2761.7,5.68187122]
[1738749868885,0.8629,2762.2,2761.8,1.7597]
[1738749869583,15.25030422,2762.6,2762.0,8.15594244]
[1738749869884,10.81734337,2762.6,2762.5,3.19772122]
[1738749870090,10.52134337,2762.6,2762.5,3.19772122]
[1738749870279,5.72484337,2762.6,2762.5,9.00852122]
[1738749870584,3.75384337,2762.6,2762.5,3.28487122]
[1738749870786,45.721,2763.5,2762.5,3.28487122]
[1738749870977,45.721,2763.5,2763.1,2.47407122]
[1738749871484,4.0707,2763.5,2763.1,2.47407122]
[1738749871786,0.8629,2763.5,2763.4,2.47407122]
[1738749872584,0.8629,2763.5,2763.2,3.2078]
[1738749877584,41.6629,2763.5,2763.2,3.2078]
[1738749879392,0.8629,2763.5,2763.2,3.2078]
[1738749879892,41.6629,2763.5,2763.2,3.2078]
[1738749880993,3.2078,2763.7,2763.2,3.2078]
[1738749881191,0.8376,2763.6,2763.2,3.2078]
[1738749881388,40.8,2763.5,2763.2,3.2078]
[1738749881693,3.2078,2763.3,2762.5,3.2078]
[1738749881993,0.8466,2763.2,2762.5,3.2078]
[1738749882194,3.2078,2763.0,2762.5,3.2078]
[1738749882484,0.8424,2762.9,2762.5,3.2078]
[1738749882886,0.8424,2762.9,2762.3,0.00543794]
[1738749883597,3.2078,2762.7,2761.8,6.30436579]
[1738749883989,0.8149,2762.6,2761.8,6.30436579]
[1738749884290,0.8549,2762.5,2761.8,6.30436579]
[1738749884593,3.2078,2762.1,2761.3,3.2078]
[1738749884791,3.2078,2762.1,2761.9,0.005428]
[1738749884989,3.2078,2762.1,2760.9,6.30436579]
[1738749885391,3.2078,2761.8,2760.9,6.30436579]
[1738749885996,0.8149,2761.7,2760.9,6.30436579]
[1738749886195,0.8149,2761.7,2761.1,0.005428]
[1738749886894,0.8506,2761.6,2761.1,0.005428]